[Event "Early-Titled-Tuesday-Blitz-May-14-2024"]
[Site "Chess.com"]
[Date "2024.05.14"]
[Round "4"]
[White "Journey_to_GrandMaster_YT"]
[Black "Arteler"]
[Result "1/2-1/2"]
[WhiteElo "2554"]
[BlackElo "2242"]
[TimeControl "180+1"]
[EndTime "8:42:07 PDT"]
[Termination "Game drawn by repetition"]

1. d4 {[%clk 0:02:58.1]} 1... Nf6 {[%clk 0:02:59.9]} 2. Nf3 {[%clk 0:02:58]}
2... g6 {[%clk 0:03:00.5]} 3. g3 {[%clk 0:02:58.4]} 3... Bg7 {[%clk 0:03:01.2]}
4. Bg2 {[%clk 0:02:59.1]} 4... d6 {[%clk 0:03:01.9]} 5. O-O {[%clk 0:02:59.6]}
5... O-O {[%clk 0:03:02.6]} 6. b3 {[%clk 0:03:00]} 6... Nc6 {[%clk 0:03:01.5]}
7. Bb2 {[%clk 0:03:00.4]} 7... a6 {[%clk 0:02:59.5]} 8. c4 {[%clk 0:02:59.3]}
8... Rb8 {[%clk 0:02:55.1]} 9. d5 {[%clk 0:02:59.5]} 9... Na5 {[%clk 0:02:55.7]}
10. Nd4 {[%clk 0:03:00.1]} 10... b5 {[%clk 0:02:40.7]} 11. cxb5 {[%clk
0:02:59.3]} 11... axb5 {[%clk 0:02:41.6]} 12. b4 {[%clk 0:02:54]} 12... Nc4
{[%clk 0:02:21.1]} 13. Nc6 {[%clk 0:02:53.6]} 13... Nxb2 {[%clk 0:02:17.5]} 14.
Qb3 {[%clk 0:02:52.2]} 14... Qe8 {[%clk 0:02:01.4]} 15. Nxb8 {[%clk 0:02:51.8]}
15... Bb7 {[%clk 0:01:36.1]} 16. Nc6 {[%clk 0:02:47.5]} 16... Nc4 {[%clk
0:01:11.1]} 17. Nc3 {[%clk 0:02:45.1]} 17... Nd2 {[%clk 0:01:11]} 18. Qd1 {[%clk
0:02:35.2]} 18... Nxf1 {[%clk 0:01:11.2]} 19. Nxb5 {[%clk 0:02:10.2]} 19... Nxd5
{[%clk 0:00:51.3]} 20. Bxd5 {[%clk 0:01:56]} 20... Bxa1 {[%clk 0:00:42.7]} 21.
Nxc7 {[%clk 0:01:14.7]} 21... Qd7 {[%clk 0:00:42.9]} 22. b5 {[%clk 0:00:51]}
22... Qxc7 {[%clk 0:00:39.4]} 23. Qxa1 {[%clk 0:00:47.7]} 23... Nd2 {[%clk
0:00:33.6]} 24. Qd4 {[%clk 0:00:40.1]} 24... Bxc6 {[%clk 0:00:32.4]} 25. Bxc6
{[%clk 0:00:37.9]} 25... Qa5 {[%clk 0:00:31.9]} 26. b6 {[%clk 0:00:29.9]} 26...
Rb8 {[%clk 0:00:31.2]} 27. b7 {[%clk 0:00:29.2]} 27... Qxa2 {[%clk 0:00:27.7]}
28. Kg2 {[%clk 0:00:21]} 28... Qc4 {[%clk 0:00:26]} 29. Qb6 {[%clk 0:00:19.5]}
29... Qxe2 {[%clk 0:00:14.8]} 30. h4 {[%clk 0:00:09.3]} 30... Qf1+ {[%clk
0:00:13.6]} 31. Kh2 {[%clk 0:00:09.8]} 31... Qb1 {[%clk 0:00:09.1]} 32. Qa7
{[%clk 0:00:09.4]} 32... Nf1+ {[%clk 0:00:06.5]} 33. Kg2 {[%clk 0:00:09]} 33...
Ne3+ {[%clk 0:00:05.2]} 34. fxe3 {[%clk 0:00:08]} 34... Qb2+ {[%clk 0:00:04.9]}
35. Kh3 {[%clk 0:00:07.2]} 35... Rxb7 {[%clk 0:00:04.3]} 36. Qxb7 {[%clk
0:00:06.9]} 36... Qf6 {[%clk 0:00:04.2]} 37. Bg2 {[%clk 0:00:06.6]} 37... Kg7
{[%clk 0:00:04.6]} 38. Qf3 {[%clk 0:00:06.4]} 38... Qe6+ {[%clk 0:00:05]} 39. g4
{[%clk 0:00:06.3]} 39... Qb3 {[%clk 0:00:04.8]} 40. Kg3 {[%clk 0:00:05.2]} 40...
Qc2 {[%clk 0:00:05.2]} 41. g5 {[%clk 0:00:05.4]} 41... Qd2 {[%clk 0:00:05.4]}
42. Qf4 {[%clk 0:00:05.6]} 42... Qe1+ {[%clk 0:00:06]} 43. Qf2 {[%clk
0:00:06.1]} 43... Qd1 {[%clk 0:00:06.6]} 44. Bf3 {[%clk 0:00:06.4]} 44... Qc1
{[%clk 0:00:06.7]} 45. Bg4 {[%clk 0:00:06.6]} 45... Qh1 {[%clk 0:00:06.7]} 46.
Qb2+ {[%clk 0:00:06.1]} 46... Kg8 {[%clk 0:00:05.3]} 47. Qb8+ {[%clk 0:00:06.8]}
47... Kg7 {[%clk 0:00:05.6]} 48. Qb2+ {[%clk 0:00:07.5]} 48... f6 {[%clk
0:00:06.1]} 49. Qg2 {[%clk 0:00:08.2]} 49... Qe1+ {[%clk 0:00:05.8]} 50. Qf2
{[%clk 0:00:08.6]} 50... Qc1 {[%clk 0:00:06.2]} 51. gxf6+ {[%clk 0:00:08.4]}
51... exf6 {[%clk 0:00:06.6]} 52. Bh3 {[%clk 0:00:08.5]} 52... Qc5 {[%clk
0:00:06.4]} 53. Bg2 {[%clk 0:00:08.4]} 53... Qe5+ {[%clk 0:00:06.9]} 54. Kh3
{[%clk 0:00:09.1]} 54... Qc3 {[%clk 0:00:07.4]} 55. Qf4 {[%clk 0:00:08.9]} 55...
Qd2 {[%clk 0:00:07.4]} 56. Qd4 {[%clk 0:00:08.6]} 56... Qf2 {[%clk 0:00:06]} 57.
Qf4 {[%clk 0:00:04.9]} 57... Qd2 {[%clk 0:00:06.2]} 58. Qf3 {[%clk 0:00:05.3]}
58... Qd3 {[%clk 0:00:06.5]} 59. Qb7+ {[%clk 0:00:05.6]} 59... Kh6 {[%clk
0:00:06.4]} 60. Qe4 {[%clk 0:00:06.5]} 60... Qd2 {[%clk 0:00:06.8]} 61. Kg3
{[%clk 0:00:06.1]} 61... Qe1+ {[%clk 0:00:06.6]} 62. Kh2 {[%clk 0:00:06.6]}
62... Qd2 {[%clk 0:00:07.5]} 63. Qf4+ {[%clk 0:00:06.9]} 63... Kg7 {[%clk
0:00:08.3]} 64. Kg3 {[%clk 0:00:06.8]} 64... Qe1+ {[%clk 0:00:08.8]} 65. Kh3
{[%clk 0:00:07.3]} 65... Qd2 {[%clk 0:00:09.5]} 1/2-1/2

[Event "Early-Titled-Tuesday-Blitz-May-14-2024"]
[Site "Chess.com"]
[Date "2024.05.14"]
[Round "4"]
[White "LileKoridze"]
[Black "Niktlt"]
[Result "1/2-1/2"]
[WhiteElo "2420"]
[BlackElo "2708"]
[TimeControl "180+1"]
[EndTime "8:42:07 PDT"]
[Termination "Game drawn by repetition"]

1. d4 {[%clk 0:03:00.9]} 1... Nf6 {[%clk 0:02:58.7]} 2. c4 {[%clk 0:02:59.1]}
2... e6 {[%clk 0:02:58.6]} 3. Nf3 {[%clk 0:02:57.7]} 3... d5 {[%clk 0:02:57.1]}
4. g3 {[%clk 0:02:57.8]} 4... c5 {[%clk 0:02:52.1]} 5. cxd5 {[%clk 0:02:57.5]}
5... Nxd5 {[%clk 0:02:49.3]} 6. Bg2 {[%clk 0:02:56]} 6... Nc6 {[%clk 0:02:47.6]}
7. O-O {[%clk 0:02:53]} 7... Be7 {[%clk 0:02:47.5]} 8. e4 {[%clk 0:02:44.7]}
8... Nf6 {[%clk 0:02:43.6]} 9. e5 {[%clk 0:02:16.7]} 9... Nd5 {[%clk 0:02:42.6]}
10. Nc3 {[%clk 0:02:16]} 10... O-O {[%clk 0:02:33.5]} 11. a3 {[%clk 0:01:58.4]}
11... cxd4 {[%clk 0:02:11.9]} 12. Nxd4 {[%clk 0:01:58]} 12... Nxc3 {[%clk
0:02:12]} 13. bxc3 {[%clk 0:01:58]} 13... Nxe5 {[%clk 0:02:07.5]} 14. Bf4 {[%clk
0:01:52.2]} 14... Ng6 {[%clk 0:02:07.2]} 15. Be3 {[%clk 0:01:51.9]} 15... e5
{[%clk 0:02:04.1]} 16. Nb5 {[%clk 0:01:48.6]} 16... a6 {[%clk 0:02:00.4]} 17.
Qxd8 {[%clk 0:01:47]} 17... Rxd8 {[%clk 0:01:59.5]} 18. Nc7 {[%clk 0:01:47.5]}
18... Rb8 {[%clk 0:01:49.2]} 19. Ba7 {[%clk 0:01:46.6]} 19... Bf5 {[%clk
0:01:49.3]} 20. Bxb8 {[%clk 0:01:45.1]} 20... Rxb8 {[%clk 0:01:50.2]} 21. Nd5
{[%clk 0:01:45.1]} 21... Bc5 {[%clk 0:01:47.4]} 22. Ne3 {[%clk 0:01:28.4]} 22...
Be6 {[%clk 0:01:44.3]} 23. Rab1 {[%clk 0:01:26]} 23... b5 {[%clk 0:01:42.2]} 24.
a4 {[%clk 0:01:24.6]} 24... Bxe3 {[%clk 0:01:29.2]} 25. fxe3 {[%clk 0:01:24.2]}
25... Bc4 {[%clk 0:01:29.6]} 26. Rfd1 {[%clk 0:01:23.6]} 26... Ne7 {[%clk
0:01:25]} 27. axb5 {[%clk 0:01:23]} 27... axb5 {[%clk 0:01:24.8]} 28. Bf1 {[%clk
0:01:21.2]} 28... Bxf1 {[%clk 0:01:20.5]} 29. Kxf1 {[%clk 0:01:21.4]} 29... f6
{[%clk 0:01:16.9]} 30. c4 {[%clk 0:01:19.9]} 30... b4 {[%clk 0:01:16.5]} 31. c5
{[%clk 0:01:18.4]} 31... Nc6 {[%clk 0:01:16.5]} 32. Rd6 {[%clk 0:01:16.9]} 32...
Na5 {[%clk 0:01:16.9]} 33. Rb6 {[%clk 0:01:16.1]} 33... Rc8 {[%clk 0:01:13.2]}
34. R1xb4 {[%clk 0:00:28.3]} 34... Rxc5 {[%clk 0:01:09]} 35. Ra6 {[%clk
0:00:24]} 35... h6 {[%clk 0:00:50.1]} 36. Ra7 {[%clk 0:00:22.2]} 36... Nc6
{[%clk 0:00:47.3]} 37. Ra8+ {[%clk 0:00:18.3]} 37... Kh7 {[%clk 0:00:47.1]} 38.
Rb7 {[%clk 0:00:18.3]} 38... e4 {[%clk 0:00:37.1]} 39. Rc7 {[%clk 0:00:17.1]}
39... Rc1+ {[%clk 0:00:36.4]} 40. Kg2 {[%clk 0:00:16.7]} 40... Rc2+ {[%clk
0:00:36.6]} 41. Kh3 {[%clk 0:00:16.7]} 41... Nd4 {[%clk 0:00:34.4]} 42. Rxc2
{[%clk 0:00:13.3]} 42... Nxc2 {[%clk 0:00:35.3]} 43. Ra4 {[%clk 0:00:07.9]}
43... Nxe3 {[%clk 0:00:35.2]} 44. Rxe4 {[%clk 0:00:06.6]} 44... Nd5 {[%clk
0:00:29.9]} 45. Re8 {[%clk 0:00:04.2]} 45... Kg6 {[%clk 0:00:29.7]} 46. Kg2
{[%clk 0:00:04.2]} 46... f5 {[%clk 0:00:29.8]} 47. Re6+ {[%clk 0:00:03.9]} 47...
Kf7 {[%clk 0:00:29]} 48. Re1 {[%clk 0:00:03.8]} 48... Nf6 {[%clk 0:00:27.9]} 49.
Re2 {[%clk 0:00:04.1]} 49... g5 {[%clk 0:00:28.3]} 50. Re1 {[%clk 0:00:04.3]}
50... Kg6 {[%clk 0:00:28.8]} 51. Re2 {[%clk 0:00:04.4]} 51... h5 {[%clk
0:00:26.4]} 52. Re6 {[%clk 0:00:04.6]} 52... Kf7 {[%clk 0:00:26.5]} 53. Ra6
{[%clk 0:00:05.3]} 53... Ne4 {[%clk 0:00:26.8]} 54. Ra5 {[%clk 0:00:05.4]} 54...
Kf6 {[%clk 0:00:26.6]} 55. Ra6+ {[%clk 0:00:06]} 55... Ke5 {[%clk 0:00:26.7]}
56. Ra5+ {[%clk 0:00:06.6]} 56... Ke6 {[%clk 0:00:25.9]} 57. Ra6+ {[%clk
0:00:07.1]} 57... Nd6 {[%clk 0:00:26.4]} 58. Rb6 {[%clk 0:00:06.7]} 58... g4
{[%clk 0:00:26.9]} 59. Ra6 {[%clk 0:00:06.9]} 59... Ke5 {[%clk 0:00:24.7]} 60.
Ra5+ {[%clk 0:00:06.7]} 60... Ke6 {[%clk 0:00:21.9]} 61. Ra6 {[%clk 0:00:07.2]}
61... Kd5 {[%clk 0:00:22]} 62. Ra5+ {[%clk 0:00:07.4]} 62... Ke4 {[%clk
0:00:20.6]} 63. Ra6 {[%clk 0:00:07.4]} 63... Kd5 {[%clk 0:00:17.2]} 64. Ra5+
{[%clk 0:00:07.5]} 64... Kc6 {[%clk 0:00:17.3]} 65. Ra6+ {[%clk 0:00:07.8]}
65... Kc5 {[%clk 0:00:17.2]} 66. Ra5+ {[%clk 0:00:07.4]} 66... Kd4 {[%clk
0:00:17]} 67. Ra6 {[%clk 0:00:07.5]} 67... Ke5 {[%clk 0:00:17.1]} 68. Ra5+
{[%clk 0:00:07.8]} 68... Ke6 {[%clk 0:00:16]} 69. Ra6 {[%clk 0:00:08.2]} 1/2-1/2

[Event "Early-Titled-Tuesday-Blitz-May-14-2024"]
[Site "Chess.com"]
[Date "2024.05.14"]
[Round "4"]
[White "Lion-Al-Messi"]
[Black "Viktoker"]
[Result "1/2-1/2"]
[WhiteElo "2563"]
[BlackElo "2337"]
[TimeControl "180+1"]
[EndTime "8:42:09 PDT"]
[Termination "Game drawn - insufficient material"]

1. e4 {[%clk 0:03:00.9]} 1... e5 {[%clk 0:02:57.7]} 2. Nf3 {[%clk 0:03:01]} 2...
Nc6 {[%clk 0:02:56]} 3. Bb5 {[%clk 0:03:01.4]} 3... f5 {[%clk 0:02:55.9]} 4. Nc3
{[%clk 0:02:58.5]} 4... Nf6 {[%clk 0:02:54.4]} 5. exf5 {[%clk 0:02:58.1]} 5...
e4 {[%clk 0:02:53.5]} 6. Qe2 {[%clk 0:02:54.8]} 6... d5 {[%clk 0:02:39.7]} 7. d3
{[%clk 0:02:51.9]} 7... Bb4 {[%clk 0:01:55.1]} 8. dxe4 {[%clk 0:02:47.5]} 8...
Nxe4 {[%clk 0:01:54.2]} 9. O-O {[%clk 0:02:46.8]} 9... Bxc3 {[%clk 0:01:51.5]}
10. bxc3 {[%clk 0:02:47.7]} 10... O-O {[%clk 0:01:50.4]} 11. c4 {[%clk
0:02:42.3]} 11... a6 {[%clk 0:01:49.9]} 12. cxd5 {[%clk 0:02:38.2]} 12... axb5
{[%clk 0:01:23.8]} 13. dxc6 {[%clk 0:02:28.9]} 13... Qd5 {[%clk 0:01:23.4]} 14.
Bb2 {[%clk 0:02:22.5]} 14... Bxf5 {[%clk 0:01:20.4]} 15. cxb7 {[%clk 0:02:18]}
15... Qxb7 {[%clk 0:01:21.3]} 16. Rfe1 {[%clk 0:02:11.2]} 16... Rae8 {[%clk
0:01:19.1]} 17. Qe3 {[%clk 0:02:09.2]} 17... c5 {[%clk 0:01:03.6]} 18. Rad1
{[%clk 0:02:03]} 18... c4 {[%clk 0:00:53.8]} 19. Nd4 {[%clk 0:01:56.9]} 19...
Bd7 {[%clk 0:00:47.8]} 20. Nf3 {[%clk 0:01:45.5]} 20... Bf5 {[%clk 0:00:46.4]}
21. Qd4 {[%clk 0:01:44.8]} 21... Bg4 {[%clk 0:00:43.4]} 22. Re3 {[%clk
0:01:33.3]} 22... Bxf3 {[%clk 0:00:28]} 23. gxf3 {[%clk 0:01:34.2]} 23... Ng5
{[%clk 0:00:26.1]} 24. Qd7 {[%clk 0:01:33.3]} 24... Nxf3+ {[%clk 0:00:24.7]} 25.
Kh1 {[%clk 0:01:12.7]} 25... Qxd7 {[%clk 0:00:22.8]} 26. Rxd7 {[%clk 0:01:13.6]}
26... Rxe3 {[%clk 0:00:17.6]} 27. Rxg7+ {[%clk 0:01:13.5]} 27... Kh8 {[%clk
0:00:17.5]} 28. fxe3 {[%clk 0:00:53.3]} 28... b4 {[%clk 0:00:16.9]} 29. Rc7+
{[%clk 0:00:34.3]} 29... Kg8 {[%clk 0:00:16.6]} 30. Rxc4 {[%clk 0:00:30.8]}
30... h5 {[%clk 0:00:15.2]} 31. Rxb4 {[%clk 0:00:27.5]} 31... Ne1 {[%clk
0:00:13.9]} 32. Rf4 {[%clk 0:00:18.1]} 32... Ra8 {[%clk 0:00:11.2]} 33. a4
{[%clk 0:00:17.5]} 33... Nxc2 {[%clk 0:00:10.6]} 34. Re4 {[%clk 0:00:13.8]}
34... Rb8 {[%clk 0:00:11.1]} 35. Bc3 {[%clk 0:00:12.4]} 35... Rb3 {[%clk
0:00:09.3]} 36. Bd2 {[%clk 0:00:12.4]} 36... Rd3 {[%clk 0:00:08]} 37. Ba5 {[%clk
0:00:11.8]} 37... Nxe3 {[%clk 0:00:05.2]} 38. Kg1 {[%clk 0:00:12.3]} 38... Nd5
{[%clk 0:00:03.8]} 39. Kf2 {[%clk 0:00:11.3]} 39... Ra3 {[%clk 0:00:03.1]} 40.
Bd2 {[%clk 0:00:10.5]} 40... Nf6 {[%clk 0:00:02.8]} 41. Rd4 {[%clk 0:00:09.8]}
41... Ng4+ {[%clk 0:00:03]} 42. Ke2 {[%clk 0:00:10.3]} 42... Nxh2 {[%clk
0:00:03.3]} 43. a5 {[%clk 0:00:10.8]} 43... Ng4 {[%clk 0:00:03]} 44. Rd5 {[%clk
0:00:10.9]} 44... Nf6 {[%clk 0:00:03]} 45. Rf5 {[%clk 0:00:11.2]} 45... Ne4
{[%clk 0:00:02.9]} 46. Bb4 {[%clk 0:00:09.4]} 46... Ra4 {[%clk 0:00:02.9]} 47.
Be1 {[%clk 0:00:08.8]} 47... Ra2+ {[%clk 0:00:02.8]} 48. Ke3 {[%clk 0:00:08.8]}
48... Ra1 {[%clk 0:00:03.1]} 49. Kxe4 {[%clk 0:00:07.3]} 49... Rxe1+ {[%clk
0:00:02.9]} 50. Kd5 {[%clk 0:00:07.7]} 50... Ra1 {[%clk 0:00:03.1]} 51. Kc6
{[%clk 0:00:08]} 51... h4 {[%clk 0:00:03.6]} 52. Kb6 {[%clk 0:00:07.8]} 52... h3
{[%clk 0:00:03.9]} 53. Rh5 {[%clk 0:00:08.4]} 53... Ra3 {[%clk 0:00:03.7]} 54.
a6 {[%clk 0:00:08.7]} 54... Kg7 {[%clk 0:00:04.3]} 55. Kb7 {[%clk 0:00:09]}
55... Kg6 {[%clk 0:00:04.8]} 56. Rh8 {[%clk 0:00:08.7]} 56... Kg5 {[%clk
0:00:05.1]} 57. a7 {[%clk 0:00:08.6]} 57... Kg4 {[%clk 0:00:05.5]} 58. Rg8+
{[%clk 0:00:09.1]} 58... Kh4 {[%clk 0:00:05.6]} 59. Rh8+ {[%clk 0:00:09.5]}
59... Kg3 {[%clk 0:00:05.6]} 60. Rg8+ {[%clk 0:00:09.9]} 60... Kf2 {[%clk
0:00:05.2]} 61. Rf8+ {[%clk 0:00:10.3]} 61... Kg2 {[%clk 0:00:05.6]} 62. Rg8+
{[%clk 0:00:10.1]} 62... Kf2 {[%clk 0:00:06]} 63. Rh8 {[%clk 0:00:08.8]} 63...
Kg2 {[%clk 0:00:05.8]} 64. Rh6 {[%clk 0:00:09.3]} 64... Rxa7+ {[%clk 0:00:05.4]}
65. Kxa7 {[%clk 0:00:09]} 65... h2 {[%clk 0:00:06.3]} 66. Rxh2+ {[%clk
0:00:08.9]} 66... Kxh2 {[%clk 0:00:06.8]} 1/2-1/2

[Event "Early-Titled-Tuesday-Blitz-May-14-2024"]
[Site "Chess.com"]
[Date "2024.05.14"]
[Round "4"]
[White "TigrVShlyape"]
[Black "Suleyman_Chess06"]
[Result "1-0"]
[WhiteElo "2958"]
[BlackElo "2793"]
[TimeControl "180+1"]
[EndTime "8:42:11 PDT"]
[Termination "TigrVShlyape won by resignation"]

1. e4 {[%clk 0:03:00.9]} 1... e6 {[%clk 0:02:59.5]} 2. d4 {[%clk 0:03:00.1]}
2... d5 {[%clk 0:03:00.4]} 3. Nc3 {[%clk 0:02:59.7]} 3... Nf6 {[%clk 0:03:00.5]}
4. e5 {[%clk 0:02:59.7]} 4... Nfd7 {[%clk 0:02:59.7]} 5. f4 {[%clk 0:03:00.3]}
5... c5 {[%clk 0:02:58.8]} 6. Nf3 {[%clk 0:03:00.6]} 6... Nc6 {[%clk 0:02:58.6]}
7. Ne2 {[%clk 0:03:00.8]} 7... cxd4 {[%clk 0:02:53.2]} 8. Nexd4 {[%clk
0:03:00.2]} 8... Nc5 {[%clk 0:02:53.6]} 9. c3 {[%clk 0:02:59.8]} 9... Ne4 {[%clk
0:02:53.3]} 10. Be3 {[%clk 0:02:57.2]} 10... Bc5 {[%clk 0:02:50.2]} 11. Bd3
{[%clk 0:02:53.7]} 11... O-O {[%clk 0:02:49.7]} 12. Qc2 {[%clk 0:02:52.3]} 12...
Nxd4 {[%clk 0:02:43.1]} 13. Nxd4 {[%clk 0:02:36.6]} 13... Qb6 {[%clk 0:02:05.8]}
14. O-O {[%clk 0:02:27]} 14... Bd7 {[%clk 0:02:04.8]} 15. a4 {[%clk 0:02:20.7]}
15... a5 {[%clk 0:02:02.7]} 16. Kh1 {[%clk 0:02:18.5]} 16... Bc6 {[%clk
0:02:00.2]} 17. f5 {[%clk 0:02:14.1]} 17... exf5 {[%clk 0:01:57.2]} 18. Rxf5
{[%clk 0:02:12.9]} 18... Rac8 {[%clk 0:01:53.6]} 19. Raf1 {[%clk 0:02:08.2]}
19... Bd7 {[%clk 0:01:53.5]} 20. R5f4 {[%clk 0:01:52.5]} 20... Qg6 {[%clk
0:01:29.1]} 21. Bxe4 {[%clk 0:01:06.2]} 21... dxe4 {[%clk 0:01:28.4]} 22. Qxe4
{[%clk 0:01:06.1]} 22... Qxe4 {[%clk 0:01:23.5]} 23. Rxe4 {[%clk 0:01:06.3]}
23... Bxa4 {[%clk 0:01:22.2]} 24. Nf5 {[%clk 0:01:04.4]} 24... Bc2 {[%clk
0:01:08.6]} 25. Bxc5 {[%clk 0:01:04]} 25... Rxc5 {[%clk 0:00:47.4]} 26. Ne7+
{[%clk 0:00:58.7]} 26... Kh8 {[%clk 0:00:47.5]} 27. Re3 {[%clk 0:00:59]} 27...
Bb3 {[%clk 0:00:32.5]} 28. Nf5 {[%clk 0:00:56.9]} 28... Re8 {[%clk 0:00:27.8]}
29. Nd4 {[%clk 0:00:52.4]} 29... Bc4 {[%clk 0:00:24.6]} 30. Rfe1 {[%clk
0:00:52.7]} 30... h6 {[%clk 0:00:24.5]} 31. h4 {[%clk 0:00:52.3]} 31... a4
{[%clk 0:00:23.4]} 32. Kh2 {[%clk 0:00:51.6]} 32... b5 {[%clk 0:00:22.1]} 33. g4
{[%clk 0:00:50.3]} 33... g6 {[%clk 0:00:19.6]} 34. Kg3 {[%clk 0:00:50.4]} 34...
Kg7 {[%clk 0:00:20]} 35. h5 {[%clk 0:00:48]} 35... Rc7 {[%clk 0:00:12.5]} 36.
hxg6 {[%clk 0:00:47.3]} 36... fxg6 {[%clk 0:00:13.4]} 37. e6 {[%clk 0:00:46.3]}
37... Rce7 {[%clk 0:00:14]} 38. Re5 {[%clk 0:00:40.6]} 38... Kf6 {[%clk
0:00:12.7]} 39. Rc5 {[%clk 0:00:35.1]} 39... Bxe6 {[%clk 0:00:08.5]} 40. Rc6
{[%clk 0:00:33.3]} 40... Kf7 {[%clk 0:00:06.8]} 41. Nxb5 {[%clk 0:00:32.5]}
41... Rd8 {[%clk 0:00:05.6]} 42. Nd4 {[%clk 0:00:30.2]} 42... Rde8 {[%clk
0:00:03.2]} 43. Ra6 {[%clk 0:00:22.6]} 43... Bb3 {[%clk 0:00:03.2]} 44. Rxe7+
{[%clk 0:00:21.3]} 44... Rxe7 {[%clk 0:00:03.8]} 45. Nxb3 {[%clk 0:00:21.6]}
45... axb3 {[%clk 0:00:03.5]} 46. Rb6 {[%clk 0:00:22.2]} 46... Re2 {[%clk
0:00:02.9]} 47. Rxb3 {[%clk 0:00:21.4]} 47... Kf6 {[%clk 0:00:03.6]} 48. Rb5
{[%clk 0:00:21.3]} 48... Re3+ {[%clk 0:00:03.5]} 49. Kf2 {[%clk 0:00:20.4]}
49... Rh3 {[%clk 0:00:03.3]} 50. Kg2 {[%clk 0:00:19.4]} 50... Rd3 {[%clk
0:00:03.3]} 51. Kf2 {[%clk 0:00:17.8]} 51... Kg7 {[%clk 0:00:02.1]} 52. Rb6
{[%clk 0:00:16]} 52... Kf7 {[%clk 0:00:01.2]} 53. Ke2 {[%clk 0:00:15.1]} 53...
Rh3 {[%clk 0:00:01.9]} 54. c4 {[%clk 0:00:14.6]} 54... Rh4 {[%clk 0:00:00.9]}
55. c5 {[%clk 0:00:14.7]} 55... Rxg4 {[%clk 0:00:00.8]} 56. c6 {[%clk
0:00:14.7]} 56... Rc4 {[%clk 0:00:01.5]} 57. b4 {[%clk 0:00:14.5]} 57... Ke6
{[%clk 0:00:02.2]} 58. b5 {[%clk 0:00:14.8]} 58... Kd6 {[%clk 0:00:02.9]} 59.
Rb7 {[%clk 0:00:15.1]} 59... g5 {[%clk 0:00:03.1]} 60. Rd7+ {[%clk 0:00:13.5]}
60... Ke6 {[%clk 0:00:03.5]} 61. Rd8 {[%clk 0:00:12.6]} 61... Rc5 {[%clk
0:00:03.6]} 62. b6 {[%clk 0:00:12.2]} 62... Rxc6 {[%clk 0:00:04]} 63. b7 {[%clk
0:00:12.6]} 63... Rc2+ {[%clk 0:00:04]} 64. Kd3 {[%clk 0:00:12.3]} 64... Rb2
{[%clk 0:00:04.3]} 65. b8=Q {[%clk 0:00:12.4]} 65... Rxb8 {[%clk 0:00:05.2]} 66.
Rxb8 {[%clk 0:00:12.8]} 66... Kf5 {[%clk 0:00:06.1]} 67. Ke3 {[%clk 0:00:12.3]}
67... Kg4 {[%clk 0:00:06.1]} 68. Kf2 {[%clk 0:00:12.5]} 68... h5 {[%clk
0:00:06.6]} 69. Kg2 {[%clk 0:00:12.4]} 69... Kh4 {[%clk 0:00:06.9]} 70. Rb4+
{[%clk 0:00:12.3]} 70... g4 {[%clk 0:00:07.8]} 71. Rb5 {[%clk 0:00:12.5]} 71...
g3 {[%clk 0:00:08.1]} 72. Rb4+ {[%clk 0:00:12.9]} 72... Kg5 {[%clk 0:00:09]} 73.
Kxg3 {[%clk 0:00:13.3]} 1-0